bitfinex/quotes_ETHUSD_20250715
["timestamp","ask_amount","ask_price","bid_price","bid_amount"]
[1752597102869,3.27700452,3051.6,3051.2,0.33591233]
[1752597103054,3.27700452,3051.6,3051.3,0.87044957]
[1752597103260,3.27660573,3052.0,3051.5,0.9502]
[1752597103459,3.27660573,3052.0,3051.6,5.50990803]
[1752597103638,3.27644326,3052.1,3051.9,0.1632]
[1752597103844,3.27644326,3052.1,3052.0,5.47657874]
[1752597104051,3.27644326,3052.1,3052.0,5.63977874]
[1752597104251,0.002,3052.4,3052.0,6.20703337]
[1752597104468,0.002,3052.4,3052.3,0.1632]
[1752597104649,3.2781106,3052.4,3052.3,5.63972453]
[1752597105069,3.2781106,3052.4,3052.3,0.46572453]
[1752597105602,3.2781106,3052.4,3052.3,0.30252453]
[1752597105769,0.002,3052.4,3052.3,0.86649698]
[1752597105974,0.002,3052.4,3052.3,1.06245915]
[1752597106686,0.002,3052.4,3052.3,4.06245915]
[1752597106887,0.002,3052.4,3052.3,4.06209817]
[1752597107092,0.002,3052.4,3052.3,7.3383161]
[1752597107391,0.002,3052.4,3052.3,7.30555393]
[1752597107690,0.002,3052.4,3052.3,4.029336]
[1752597107851,0.002,3052.4,3052.3,7.3383161]
[1752597108054,0.002,3052.4,3052.3,7.30555393]
[1752597108865,0.002,3052.4,3052.3,8.67025393]
[1752597109565,0.002,3052.4,3052.3,13.84325393]
[1752597109791,0.002,3052.4,3052.3,8.67025393]
[1752597109991,0.002,3052.4,3052.3,13.84325393]
[1752597110495,0.002,3052.4,3052.3,8.66958886]
[1752597110793,0.002,3052.4,3052.3,13.84358886]
[1752597112089,0.002,3053.1,3053.0,6.27546675]
[1752597112292,0.002,3053.1,3053.0,13.1632119]
[1752597112587,0.002,3053.1,3053.0,13.3264119]
[1752597112793,0.002,3053.1,3053.0,13.02491342]
[1752597112957,0.002,3053.1,3053.0,13.32590213]
[1752597113454,0.002,3053.1,3053.0,5.12147089]
[1752597113900,0.002,3053.1,3053.0,9.50677089]
[1752597114059,0.002,3053.1,3053.0,12.78223764]
[1752597115404,0.002,3053.1,3053.0,9.50677089]
[1752597115764,0.002,3053.1,3053.0,9.20478218]
[1752597115970,0.002,3053.1,3053.0,9.50549291]
[1752597116172,0.002,3053.1,3053.0,12.78095966]
[1752597116882,0.002,3053.1,3053.0,14.11765966]
[1752597117205,0.002,3053.1,3053.0,8.39665966]
[1752597117505,0.002,3053.1,3053.0,14.11765966]
[1752597121068,1e-08,3053.1,3053.0,22.12616254]
[1752597121312,0.002,3053.2,3053.0,22.12616254]
[1752597121313,1e-08,3053.2,3053.1,7.62905947]
[1752597121605,1e-08,3053.2,3053.1,31.52825502]
[1752597121907,1e-08,3053.2,3053.1,31.52832267]
[1752597122479,1e-08,3053.2,3053.1,31.28283267]
[1752597122674,0.002,3053.5,3053.4,7.62873766]
[1752597122874,0.16320001,3055.1,3053.5,3.8037]
[1752597123127,3.27352527,3054.9,3054.3,3.27399168]
[1752597123285,3.27540095,3055.0,3054.9,0.1632]
[1752597123486,0.002,3055.0,3054.9,5.63422706]
[1752597123692,0.002,3055.0,3054.9,5.3332]
[1752597124013,0.002,3055.0,3054.9,8.36593429]
[1752597124172,0.002,3055.0,3054.9,9.16979343]
[1752597124372,8.30921361,3057.0,3054.9,9.16979343]
[1752597124373,0.8285,3056.3,3055.5,3.2727274]
[1752597124578,3.27203717,3056.2,3055.6,8.20172679]
[1752597124813,0.8285,3056.3,3055.8,3.0]
[1752597124977,0.8285,3056.3,3055.9,5.20172358]
[1752597125498,0.8285,3056.3,3055.9,8.47408171]
[1752597125681,0.8285,3056.3,3056.0,0.03272251]
[1752597125881,0.8285,3056.3,3056.1,5.169]
[1752597126580,0.002,3056.3,3056.1,5.169]
[1752597126821,0.002,3056.3,3056.2,0.03272037]
[1752597126992,0.002,3056.3,3056.2,3.30475754]
[1752597127189,0.002,3056.3,3056.2,0.03272037]
[1752597127387,0.002,3056.3,3056.2,5.20072037]
[1752597128434,0.002,3056.3,3056.2,0.03272037]
[1752597128582,0.002,3056.3,3056.2,5.168]
[1752597129091,0.002,3056.3,3056.2,9.34442445]
[1752597129309,0.002,3056.3,3056.2,9.31170408]
[1752597129539,0.002,3056.3,3056.2,12.31170408]
[1752597129908,0.002,3056.3,3056.2,13.63880408]
[1752597130204,0.002,3056.3,3056.2,7.92080408]
[1752597130408,0.002,3056.3,3056.2,4.64876691]
[1752597130660,0.002,3056.3,3056.2,13.12052445]
[1752597130812,0.002,3056.3,3056.2,13.63780408]
[1752597131008,0.002,3056.3,3056.2,21.94701769]
[1752597131238,3.96601181,3058.9,3056.4,1.3629]
[1752597131445,0.00543984,3059.0,3056.7,3.0]
[1752597131446,0.7743,3057.9,3056.7,3.0]
[1752597131602,0.7743,3057.9,3056.8,5.19971394]
[1752597131808,3.27271947,3057.5,3056.8,3.27138219]
[1752597132145,0.002,3057.5,3057.0,3.0]
[1752597132345,0.002,3057.5,3057.1,6.01641073]
[1752597132516,3.27085693,3057.4,3057.2,5.167]
[1752597132723,0.002,3057.5,3057.2,0.03270966]
[1752597132913,3.27264595,3057.5,3057.3,5.167]
[1752597133317,0.002,3057.5,3057.4,0.03270752]
[1752597134116,0.002,3057.5,3056.8,0.7643]
[1752597134322,3.27264595,3057.5,3057.4,0.1632]
[1752597134754,4.25401771,3057.5,3057.4,1e-08]
[1752597134935,5.05111771,3057.5,3057.4,1e-08]
[1752597135135,5.05111771,3057.5,3056.0,0.24376658]
[1752597135136,0.7971,3056.7,3056.0,0.24376658]
[1752597135331,3.27160897,3056.6,3056.1,5.166]
[1752597135635,4.06860194,3056.7,3056.6,0.1632]
[1752597135865,4.80260549,3056.7,3056.6,5.3292]
[1752597136191,3.27214423,3056.1,3056.0,0.27499536]
[1752597136355,3.27214423,3056.1,3056.0,5.165]
[1752597136550,3.27214423,3056.1,3056.0,5.3282]
[1752597136755,3.27214423,3056.1,3056.0,8.3282]
[1752597137254,4.07894423,3056.1,3056.0,0.1632]
[1752597137454,4.73336206,3056.1,3056.0,0.1632]
[1752597137689,3.27246547,3055.8,3055.7,3.66]
[1752597138066,3.27200593,3056.3,3055.7,4.20347232]
[1752597138268,0.8068,3056.5,3056.2,0.1632]
[1752597138466,3.27124695,3057.0,3056.2,0.1632]
[1752597138467,3.27118089,3057.0,3056.3,5.46650537]
[1752597138693,3.27118089,3057.0,3056.7,0.1632]
[1752597138891,3.27139492,3056.8,3056.7,0.1632]
[1752597139090,4.7519525,3056.8,3056.7,0.29952847]
[1752597139597,8.3019525,3056.8,3056.7,1e-08]
[1752597139795,8.3019525,3056.8,3055.1,3.27315694]
[1752597139796,3.2722513,3056.0,3055.9,0.1632]
[1752597139977,4.0985513,3056.0,3055.9,0.1632]
[1752597140179,0.8263,3056.0,3055.9,0.1632]
[1752597140385,0.65425758,3056.8,3055.9,0.1632]
[1752597140386,0.8263,3056.3,3055.9,0.1632]
[1752597140569,0.8263,3056.6,3055.9,0.56634358]
[1752597140874,3.27172649,3056.5,3056.2,0.1632]
[1752597141073,3.27172649,3056.5,3056.3,5.174]
[1752597141275,3.27171601,3056.5,3056.4,0.1632]
[1752597141581,3.68151761,3056.5,3056.4,0.1632]
[1752597141978,3.27235838,3055.9,3055.8,0.03272465]
[1752597142169,3.27235838,3055.9,3055.8,8.173]
[1752597142357,3.27220889,3056.1,3055.8,8.3362]
[1752597142689,3.68157986,3056.5,3056.0,0.1632]
[1752597142891,3.2722513,3056.0,3055.9,0.1632]
[1752597143256,3.27278677,3055.5,3055.4,5.173]
[1752597143699,3.27257256,3055.7,3055.6,0.1632]
[1752597144977,0.7682,3055.6,3055.1,0.1632]
[1752597145176,3.27310814,3055.2,3055.1,0.1632]
[1752597145966,3.27310814,3055.2,3054.7,5.172]
[1752597145967,3.27321527,3055.1,3054.0,0.7517]
[1752597146191,3.27321527,3055.1,3053.0,0.001]
[1752597146192,3.2742563,3054.2,3054.1,5.181]
[1752597146376,2.88111438,3054.2,3054.1,5.181]
[1752597146582,2.88111438,3054.2,3054.1,5.3442]
[1752597147370,3.27396542,3054.4,3054.1,5.3442]
[1752597147574,0.7594,3054.9,3054.2,0.03274179]
[1752597147789,3.27388716,3054.5,3054.2,0.03274179]
[1752597148168,3.27388716,3054.5,3054.4,0.1632]
[1752597149287,3.27356512,3054.8,3054.4,0.1632]
[1752597149626,3.27375106,3054.6,3054.5,0.03273858]
[1752597149926,3.27353672,3054.8,3054.4,0.53472]
[1752597150108,3.27375106,3054.6,3054.5,0.1632]
[1752597150423,3.27396542,3054.4,3054.3,5.184]
[1752597150848,3.27396542,3054.4,3054.3,5.3472]
[1752597151402,3.27386042,3054.5,3054.3,5.3472]
[1752597151939,3.27278677,3055.5,3054.4,3.0]
[1752597152083,3.2733859,3055.0,3054.5,0.03273858]
[1752597152284,3.27321527,3055.1,3055.0,0.1632]
[1752597153991,4.03131527,3055.1,3055.0,0.1632]
[1752597154687,4.7617641,3055.1,3055.0,0.1632]
[1752597154892,3.27403116,3054.4,3054.1,5.181]
[1752597155122,3.27403116,3054.4,3054.2,0.03274179]
[1752597155310,3.27403116,3054.4,3054.3,0.1632]
[1752597155728,4.07813116,3054.4,3054.3,0.1632]
[1752597156029,4.07813116,3054.4,3053.1,3.27527806]
[1752597156030,3.27477486,3053.7,3053.5,5.18]
[1752597156231,3.27412003,3054.3,3053.1,0.7938]
[1752597156408,3.27471591,3053.7,3053.6,0.1632]
[1752597156730,3.27460762,3053.9,3053.2,0.001]
[1752597156731,3.27510686,3053.4,3053.2,0.001]
[1752597156906,4.02724277,3053.6,3053.3,0.1632]
[1752597156907,2.88170168,3053.5,3053.3,0.1632]
[1752597157107,4.02723032,3053.6,3053.3,0.1632]
[1752597157307,3.27503766,3053.4,3053.3,0.1632]
[1752597157896,3.27495344,3053.5,3053.3,0.1632]
[1752597158225,3.27499231,3053.5,3053.3,0.1632]
[1752597158598,0.7524,3053.6,3053.3,0.1632]
[1752597158599,3.27503766,3053.4,3053.3,0.1632]
[1752597161147,3.27514492,3053.3,3053.2,0.001]
[1752597163327,3.93016318,3053.3,3053.2,0.001]
[1752597163531,4.73056318,3053.3,3053.2,0.001]
[1752597163732,4.07554492,3053.3,3053.2,0.001]
[1752597164035,0.7773,3054.0,3053.2,5.3402]
[1752597164259,3.27479331,3053.7,3053.3,0.03275144]
[1752597164453,3.27450809,3053.9,3053.7,0.1632]
[1752597164655,3.27402245,3054.4,3053.7,0.1632]
[1752597164656,3.27435489,3054.1,3053.7,5.3442]
[1752597164966,3.27440306,3054.0,3053.7,5.21374715]
[1752597165332,3.27440306,3054.0,3053.9,0.1632]
[1752597165843,3.27457848,3053.9,3053.8,5.3422]
[1752597166052,3.27431672,3054.1,3053.8,5.87642]
[1752597166253,3.27440105,3054.0,3053.8,5.71322]
[1752597166448,3.2741899,3054.2,3053.8,5.71322]
[1752597166449,3.27450145,3053.9,3053.8,5.179]
[1752597166658,3.27445742,3054.0,3053.8,5.179]
[1752597166859,3.27450145,3053.9,3053.8,0.1632]
[1752597167550,3.2749304,3053.5,3053.4,5.179]
[1752597167955,3.2749304,3053.5,3053.4,5.3422]
[1752597168681,3.27514492,3053.3,3053.2,0.001]
[1752597168852,3.27514492,3053.3,3053.2,0.1642]
[1752597169349,4.70696334,3053.3,3053.2,0.001]
[1752597170474,4.87016334,3053.3,3053.2,0.001]
[1752597171795,4.70067041,3053.3,3053.2,0.001]
[1752597172087,4.04565199,3053.3,3053.2,0.001]
[1752597172665,3.26885199,3053.3,3053.2,0.001]
[1752597173181,3.27509948,3053.4,3053.2,0.1642]
[1752597173596,0.8073,3054.2,3053.3,5.177]
[1752597173787,3.27460868,3053.8,3053.7,0.1632]
[1752597175214,3.27451992,3053.9,3053.7,0.1632]
[1752597175373,6.1088,3054.5,3053.7,0.1632]
[1752597175573,3.27471591,3053.7,3053.6,0.8199]
[1752597175786,3.27465502,3053.8,3053.6,0.8199]
[1752597175988,6.1088,3054.5,3053.6,0.9831]
[1752597176186,3.27471591,3053.7,3053.6,0.9831]
[1752597177122,3.27471591,3053.7,3053.6,0.1632]
[1752597177616,3.27461194,3053.8,3053.6,0.1632]
[1752597177799,3.27446256,3054.0,3053.6,0.1632]
[1752597178007,3.27446256,3054.0,3053.9,0.1632]
[1752597178168,3.27427075,3054.2,3053.9,5.3342]
[1752597178393,3.27332242,3055.0,3053.9,5.9249]
[1752597178615,3.27414184,3054.3,3054.0,0.03274394]
[1752597178814,3.27417981,3054.2,3054.0,0.03274394]
[1752597178988,3.27408142,3054.3,3054.0,0.59576439]
[1752597179385,3.27418677,3054.2,3054.0,0.59576439]
[1752597179587,3.27428702,3054.1,3054.0,0.59576439]
[1752597179914,3.27460868,3053.8,3053.7,0.03274715]
[1752597180079,0.8224,3054.4,3053.7,5.171]
[1752597180280,3.27445689,3054.0,3053.7,5.171]
[1752597180611,2.34456736,3054.8,3053.7,6.10362715]
[1752597180812,3.27375106,3054.6,3053.7,6.10362715]
[1752597180977,3.27436669,3054.1,3053.7,6.10362715]
[1752597181176,0.7647,3054.8,3053.7,6.34440357]
[1752597181377,0.7647,3054.8,3053.9,0.8214]
[1752597181715,3.27428702,3054.1,3054.0,0.03274394]
[1752597181908,3.27428702,3054.1,3053.9,2.19819483]
[1752597182283,3.27439423,3054.0,3053.7,0.89988]
[1752597182477,3.27450145,3053.9,3053.8,5.171]
[1752597185184,3.27471591,3053.7,3053.6,3.0]
[1752597185384,3.27471591,3053.7,3053.6,8.17]
[1752597185786,3.27471591,3053.7,3053.5,0.8224]
[1752597185787,3.27482315,3053.6,3053.5,0.8224]
[1752597185999,3.27482315,3053.6,3053.5,5.171]
[1752597186293,3.27459663,3053.9,3053.5,5.171]
[1752597186603,3.27466033,3053.8,3053.6,0.5171]
[1752597186981,4.07531086,3054.2,3053.6,0.5171]
[1752597187317,3.2748023,3053.7,3053.5,5.171]
[1752597188124,3.27467898,3053.8,3053.5,5.171]
[1752597188427,3.27471591,3053.7,3053.6,0.1632]
[1752597188729,3.27468179,3053.8,3053.6,0.1632]
[1752597189033,3.27456165,3053.9,3053.6,0.69989504]
[1752597189395,3.27456165,3053.9,3053.6,0.53669504]
[1752597189602,3.27456165,3053.9,3053.8,0.1632]
[1752597189818,3.27456165,3053.9,3053.8,5.3332]
[1752597191804,3.43720107,3054.4,3053.8,5.86652]
[1752597191805,0.1632,3054.4,3053.8,5.86652]
[1752597192002,0.7513,3054.5,3053.8,5.86652]
[1752597192003,0.8296,3054.9,3053.9,3.78384501]
[1752597192208,3.27386281,3054.5,3053.9,3.78384501]
[1752597192405,3.27408112,3054.3,3053.9,3.78384501]
[1752597192620,3.27353672,3054.8,3054.4,0.1632]
[1752597192850,3.27407261,3054.3,3054.2,5.3332]
[1752597193232,3.27406004,3054.4,3054.2,5.3332]
[1752597193414,3.27407261,3054.3,3054.2,5.3332]
[1752597194323,3.43684389,3054.7,3054.2,6.68842]
[1752597194324,0.1632,3054.7,3054.2,6.68842]
[1752597194522,0.8057,3055.2,3054.2,6.68842]
[1752597194523,0.8057,3055.2,3054.3,0.03274072]
[1752597194731,3.27355861,3054.8,3054.3,0.03274072]
[1752597195040,3.27365682,3054.7,3054.3,0.03274072]
[1752597195240,3.27354911,3054.8,3054.3,0.03274072]
[1752597195448,3.2735212,3054.9,3054.3,4.29001872]
[1752597195624,3.27361437,3054.8,3054.3,1.01594909]
[1752597195824,3.27372245,3054.7,3054.3,1.01594909]
[1752597196042,2.8805269,3054.7,3054.4,1.05844875]
[1752597196343,2.8805269,3054.7,3054.5,5.47333184]
[1752597196661,3.27364389,3054.7,3054.6,0.30433184]
[1752597196840,3.27364389,3054.7,3054.6,5.47333184]
[1752597197047,3.27364389,3054.7,3054.6,5.169]
[1752597197415,3.27407261,3054.3,3054.2,0.03274179]
[1752597197617,3.27428702,3054.1,3054.0,0.03274394]
[1752597197821,4.09107571,3054.6,3053.6,0.8186]
[1752597197822,3.27439423,3054.0,3053.6,0.8186]
[1752597198052,3.27410444,3054.3,3053.8,3.0]
[1752597198250,0.8173,3054.6,3053.8,3.0]
[1752597198251,3.27420597,3054.2,3053.9,0.03274501]
[1752597198417,3.27420597,3054.2,3054.0,0.30423699]
[1752597198734,3.27417981,3054.2,3054.1,5.47323699]
[1752597199970,3.27417981,3054.2,3054.1,5.47321616]
[1752597200436,3.27417981,3054.2,3054.1,5.47321116]
[1752597201255,3.0,3055.0,3054.1,5.47321116]
[1752597201441,3.27393461,3054.5,3054.3,0.8294]
[1752597201641,0.7892,3055.1,3054.3,0.8294]
[1752597201642,3.27343983,3054.9,3054.4,5.50595081]
[1752597201957,3.27369802,3054.7,3054.5,0.30421116]
[1752597202154,3.27358118,3054.8,3054.6,0.30421116]
[1752597202346,3.27358118,3054.8,3054.7,5.47321116]
[1752597202931,3.27358118,3054.8,3054.7,0.30421116]
[1752597204223,4.04778118,3054.8,3054.7,0.30421116]
[1752597208333,3.27407261,3054.3,3054.2,0.1632]
[1752597211476,2.88080621,3054.3,3054.2,0.1632]
[1752597211850,3.27400608,3054.4,3054.2,5.3322]
[1752597212044,3.27400608,3054.4,3054.3,1.36512]
[1752597212382,3.27388963,3054.5,3054.3,1.36512]
[1752597212540,3.27396542,3054.4,3054.3,1.36512]
[1752597213081,0.1652,3055.2,3054.4,0.8319]
[1752597213376,0.1652,3055.2,3054.7,4.10548723]
[1752597213377,0.002,3055.2,3054.7,4.10548723]
[1752597213576,3.27323928,3055.1,3054.9,0.8319]
[1752597213874,3.27323928,3055.1,3055.0,5.169]
[1752597214245,3.27332242,3055.0,3054.9,5.169]
[1752597216384,3.27326388,3055.1,3054.9,5.169]
[1752597216551,3.27512642,3055.2,3054.9,5.169]
[1752597216746,3.27332242,3055.0,3054.9,5.169]
[1752597217176,0.002,3055.2,3054.9,5.169]
[1752597217391,0.002,3055.2,3055.0,0.7754]
[1752597217683,3.27516497,3055.2,3055.1,0.03273215]
[1752597217888,0.002,3055.2,3055.0,0.80813322]
[1752597218364,0.002,3055.2,3055.0,4.08137512]
[1752597218563,0.002,3055.2,3055.1,0.97672751]
[1752597218760,0.002,3055.2,3055.1,4.24994278]
[1752597219067,0.002,3055.2,3055.1,8.02534278]
[1752597219368,0.002,3055.2,3055.1,9.92012751]
[1752597220163,0.002,3055.2,3055.1,5.00363998]
[1752597220369,0.002,3055.2,3055.1,9.19391247]
[1752597220587,0.002,3055.2,3054.9,0.5169]
[1752597220804,0.002,3055.2,3054.8,0.7886]
[1752597220959,0.002,3055.2,3055.1,7.09181527]
[1752597221283,0.002,3055.2,3055.1,12.80881527]
[1752597221469,0.002,3055.2,3055.1,14.41702883]
[1752597222772,0.002,3055.2,3055.1,14.65841987]
[1752597223178,0.002,3055.2,3055.1,14.82161987]
[1752597223576,0.002,3055.2,3055.1,14.27161987]
[1752597224862,0.002,3055.2,3055.1,14.82161987]
[1752597225887,0.002,3055.2,3055.1,5.8314046]
[1752597226091,0.002,3055.2,3055.1,9.38919104]
[1752597226498,0.002,3055.2,3055.1,9.1478]
[1752597226789,3.27510814,3055.2,3055.1,8.3292]
[1752597226950,0.002,3055.2,3055.1,8.3292]
[1752597227621,0.002,3055.2,3054.6,0.7538]
[1752597227904,3.27344691,3054.9,3054.8,3.0]
[1752597228129,3.27335836,3055.0,3054.8,3.0]
[1752597228300,3.27342957,3054.9,3054.8,3.0]
[1752597228485,3.27353916,3054.8,3054.6,0.7538]
[1752597228687,3.27396542,3054.4,3054.3,0.001]
[1752597228889,3.273821,3054.6,3054.3,5.167]
[1752597229089,3.2737431,3054.7,3054.3,5.167]
[1752597229516,0.002,3055.2,3054.3,5.167]
[1752597229805,3.27355312,3054.8,3054.4,0.03273965]
[1752597230017,3.27327293,3055.1,3054.5,8.43983924]
[1752597230175,3.27327293,3055.1,3054.6,0.03273751]
[1752597230374,0.002,3055.2,3054.8,0.7762]
[1752597230713,0.002,3055.2,3055.1,6.27321527]
[1752597230885,0.002,3055.2,3055.1,12.22304742]
[1752597231084,0.002,3055.2,3055.1,12.19031527]
[1752597231286,0.002,3055.2,3055.1,13.73667891]
[1752597234789,0.002,3055.2,3055.1,13.97897654]
[1752597235308,0.002,3055.2,3055.1,13.97797654]
[1752597235513,0.002,3055.2,3055.1,14.52797654]
[1752597236414,0.002,3055.2,3055.1,9.36297654]
[1752597236620,0.002,3055.2,3055.1,8.81297654]
[1752597236824,0.002,3055.2,3055.1,12.4316129]
[1752597237619,0.002,3055.2,3055.1,12.5948129]
[1752597242211,0.002,3055.2,3055.1,0.1632]
[1752597242415,3.27310814,3055.2,3055.1,0.1632]
[1752597242609,3.27310814,3055.2,3055.1,5.3272]
[1752597243620,3.27510814,3055.2,3055.1,0.1632]
[1752597243822,3.27364389,3054.7,3054.6,0.03273751]
[1752597244023,3.27396542,3054.4,3054.3,0.001]
[1752597244422,3.27396542,3054.4,3053.5,1.05318768]
[1752597244423,3.27417981,3054.2,3053.6,0.03274823]
[1752597244596,3.27385914,3054.5,3053.5,0.001]
[1752597244597,3.27482315,3053.6,3053.5,0.001]
[1752597245389,4.09462315,3053.6,3053.5,0.001]
[1752597245812,3.27482315,3053.6,3053.5,0.001]
[1752597246009,3.27482315,3053.6,3053.5,5.165]
[1752597246891,3.27474435,3053.7,3053.5,5.3282]
[1752597247093,0.8198,3053.9,3053.5,5.86102]
[1752597247401,3.27463758,3053.8,3053.5,5.69782]
[1752597247712,3.27463758,3053.8,3053.7,0.1632]
[1752597247912,6.43712754,3054.5,3053.7,0.1632]
[1752597247913,0.8004,3054.3,3053.7,0.1632]
[1752597248118,0.8004,3055.1,3053.9,0.7628]
[1752597248426,0.8004,3055.1,3053.8,5.19774608]
[1752597248427,3.27353672,3054.8,3053.8,5.165]
[1752597248631,3.27445895,3054.0,3053.8,5.165]
[1752597248797,3.27450145,3053.9,3053.8,5.165]
[1752597249834,3.27439152,3054.1,3053.5,0.0337493]
[1752597249835,3.27460868,3053.8,3053.5,0.0337493]
[1752597250032,0.8004,3054.3,3053.5,0.0337493]
[1752597250033,3.2747776,3053.7,3053.6,8.165]
[1752597250328,3.27433161,3054.1,3053.6,9.06806493]
[1752597250497,3.2744028,3054.0,3053.7,0.03274715]
[1752597250697,3.2745128,3053.9,3053.7,0.03274715]
[1752597251122,3.27468949,3053.8,3053.6,9.06806493]
[1752597251334,3.27482315,3053.6,3053.5,0.001]
[1752597251533,3.27482315,3053.6,3053.5,8.167]
[1752597252333,3.27417981,3054.2,3053.5,8.167]
[1752597252536,3.27482315,3053.6,3053.5,8.167]
[1752597252918,3.27482315,3053.6,3053.5,5.167]
[1752597253140,3.27477703,3053.7,3053.5,5.167]
[1752597253309,3.27462926,3053.8,3053.5,5.6837]
[1752597253515,3.27471802,3053.7,3053.5,5.6837]
[1752597253717,0.8004,3054.3,3053.6,0.765]
[1752597253951,3.27441416,3054.0,3053.7,0.03274715]
[1752597254243,3.27441416,3054.0,3053.8,5.166]
[1752597254545,3.27433294,3054.1,3053.8,5.166]
[1752597254747,3.27439578,3054.0,3053.8,5.166]
[1752597255113,3.27433793,3054.1,3053.8,5.166]
[1752597255520,3.27440803,3054.0,3053.8,5.166]
[1752597255735,3.27393408,3054.5,3053.9,0.03274501]
[1752597255909,3.27370714,3054.7,3054.0,3.765]
[1752597256120,3.27354284,3054.8,3054.3,6.27406218]
[1752597256451,3.2735509,3054.8,3054.4,5.5018563]
[1752597256755,3.27346377,3054.9,3054.5,0.30311665]
[1752597256953,3.27353799,3054.8,3054.6,0.33585416]
[1752597257115,3.27358546,3054.8,3054.7,5.4690184]
[1752597257319,3.27358546,3054.8,3054.7,5.166]
[1752597257716,3.27392232,3054.5,3054.3,0.03274072]
[1752597257922,3.27392232,3054.5,3054.4,5.166]
[1752597258118,3.27340277,3055.0,3054.4,5.3292]
[1752597258324,3.27364024,3054.8,3054.5,0.03273858]
[1752597258529,3.27366914,3054.7,3054.4,5.19873965]
[1752597258928,3.27366914,3054.7,3054.6,0.1632]
[1752597259863,4.05476914,3054.7,3054.6,0.1632]
[1752597260066,4.78760004,3054.7,3054.6,5.3292]
[1752597260247,4.78760004,3054.7,3054.6,5.63216492]
[1752597260765,4.78760004,3054.7,3054.6,0.30296492]
[1752597261308,3.27385824,3054.5,3054.4,5.3292]
[1752597263792,3.27439423,3054.0,3053.9,0.03274501]
[1752597263996,3.27471203,3053.8,3053.6,0.03274823]
[1752597264199,3.27453226,3053.9,3053.8,8.166]
[1752597264381,3.27453226,3053.9,3053.8,8.3292]
[1752597265205,3.27453226,3053.9,3053.8,0.1632]
[1752597265387,3.27453226,3053.9,3053.8,5.3292]
[1752597265972,3.27453226,3053.9,3053.8,0.1632]
[1752597268014,3.27471591,3053.7,3053.6,5.166]
[1752597268213,3.27471591,3053.7,3053.6,0.1632]
[1752597268379,3.27482315,3053.6,3053.5,0.001]
[1752597268575,4.07852315,3053.6,3053.5,0.001]
[1752597269312,4.07852315,3053.6,3053.2,5.167]
[1752597269611,3.27514492,3053.3,3053.2,5.167]
[1752597269801,3.27514492,3053.3,3053.2,0.001]
[1752597270997,3.9301636,3053.3,3053.2,0.001]
[1752597271200,3.9301636,3053.3,3052.9,0.1632]
[1752597271201,1.43101868,3053.3,3052.9,1e-08]
[1752597271388,1.43101868,3053.3,3050.9,0.17111438]
[1752597271389,3.27621793,3052.3,3051.8,0.8015]
[1752597271587,3.27621793,3052.3,3052.0,5.167]
[1752597271911,3.27621793,3052.3,3052.2,0.1642]
[1752597272085,5.167,3052.9,3052.2,0.001]
[1752597272284,3.27621793,3052.3,3052.2,0.001]
[1752597273475,3.27611253,3052.4,3052.2,0.001]
[1752597273709,0.776,3053.0,3052.2,0.001]
[1752597273909,3.27557404,3052.9,3052.4,0.819]
[1752597274222,3.27580091,3052.7,3052.4,0.8517611]
[1752597274434,1.42821868,3053.3,3052.4,1.45373721]
[1752597274435,0.7732,3053.3,3052.4,1.45373721]
[1752597274641,4.04836785,3053.3,3052.4,4.72982521]
[1752597274932,3.27543064,3053.1,3052.5,3.27594275]
[1752597275136,3.27543064,3053.1,3052.6,3.30864852]
[1752597275274,3.2755621,3053.0,3052.7,0.30292779]
[1752597275479,3.2755621,3053.0,3052.8,0.30292779]
[1752597275680,3.27546675,3053.0,3052.9,0.30292779]
[1752597275877,4.41191343,3053.0,3052.9,0.30292779]
[1752597277715,3.27621793,3052.3,3052.2,0.001]
[1752597282010,3.43941793,3052.3,3052.2,0.001]
[1752597282436,8.60741793,3052.3,3052.2,1e-08]
[1752597282596,10.68140118,3052.3,3052.2,1e-08]
[1752597283051,11.23140118,3052.3,3052.2,1e-08]
[1752597283655,10.68140118,3052.3,3052.2,1e-08]
[1752597283850,11.23140118,3052.3,3052.2,1e-08]
[1752597287207,11.23140118,3052.3,3052.2,1e-08]
[1752597287708,3.27632527,3052.2,3052.1,1e-08]
[1752597287940,5.05470937,3052.2,3052.1,1e-08]
[1752597289039,3.27718424,3051.4,3050.8,0.7794]
[1752597289258,0.8075,3051.8,3050.8,0.7794]
[1752597289554,3.27724239,3051.4,3051.2,0.1632]
[1752597289726,0.1632,3051.6,3051.2,0.1632]
[1752597289923,3.277201,3051.4,3051.2,0.1632]
[1752597290308,0.1632,3051.6,3051.2,0.1632]
[1752597290522,3.27697419,3051.6,3051.3,0.7527]
[1752597290723,8.0532,3052.2,3051.5,0.1632]
[1752597290945,13.2222,3052.2,3051.5,0.1632]
[1752597291120,3.27691671,3051.7,3051.5,0.42259119]
[1752597291323,3.27694789,3051.7,3051.4,0.03277184]
[1752597291635,3.27686207,3051.7,3051.6,0.1632]
[1752597292352,3.27665874,3051.9,3051.6,0.1632]
[1752597292553,3.27686207,3051.7,3051.6,0.1632]
[1752597292748,3.27686207,3051.7,3051.4,0.03277184]
[1752597292952,3.27697935,3051.6,3051.4,0.43905687]
[1752597293170,3.27691507,3051.7,3051.6,0.1632]
[1752597293445,3.27691507,3051.7,3051.4,0.03277184]
[1752597293647,3.27707684,3051.5,3051.4,0.03277184]
[1752597293849,3.27707684,3051.5,3051.3,0.7527]
[1752597294147,0.7766,3051.7,3051.0,0.7762]
[1752597294316,3.27718424,3051.4,3051.3,0.1632]
[1752597297237,3.27772132,3050.9,3050.8,8.169]
[1752597297553,3.27772132,3050.9,3050.8,5.3322]
[1752597299248,3.27772132,3050.9,3050.8,0.1632]
[1752597299415,3.27742393,3051.2,3050.7,0.1632]
[1752597299416,3.27782876,3050.8,3050.7,0.1632]
[1752597300318,3.93338414,3050.8,3050.7,0.1632]
[1752597300556,3.27815112,3050.5,3050.4,5.3322]